fUSD/lending_fUSD_20250421
["ID","MTS","AMOUNT","RATE_DAILY","PERIOD"]
[358491968,1745209840099,-500.0,0.00053488,60]
[358491969,1745209840108,-800.0,0.00053538,60]
[358491970,1745209840117,-377.0,0.000539,120]
[358491971,1745209840126,-1176.41122513,0.00053906,15]
[358491972,1745209840136,-637.27284713,0.0005402,60]
[358491973,1745209840150,-162.72715287,0.0005402,60]
[358491974,1745209840159,-152.86,0.00054068,120]
[358491975,1745209840168,-500.0,0.00054249,30]
[358491976,1745209840178,-934.17422598,0.00054295,30]
[358491977,1745209840188,-500.0,0.00054309,60]
[358491978,1745209840198,-155.277725,0.00054366,3]
[358491979,1745209840209,-155.744419,0.00054366,3]
[358491980,1745209840220,-4085.28701049,0.000544,15]
[358491981,1745209840230,-250.0,0.00054401,120]
[358491982,1745209840239,-500.0,0.00054473,10]
[358491983,1745209840249,-1000.0,0.000545,2]
[358491984,1745209840259,-1000.0,0.000545,2]
[358491985,1745209840268,-1000.0,0.000545,2]
[358491986,1745209840277,-1000.0,0.000545,2]
[358491987,1745209840286,-1000.0,0.000545,2]
[358491988,1745209840295,-1000.0,0.000545,2]
[358491989,1745209840305,-1000.0,0.000545,2]
[358491991,1745209840314,-1000.0,0.000545,2]
[358491992,1745209840324,-1000.0,0.000545,2]
[358491993,1745209840334,-1000.0,0.000545,2]
[358491994,1745209840343,-1000.0,0.000545,2]
[358491995,1745209840353,-1000.0,0.000545,2]
[358491996,1745209840362,-1000.0,0.000545,2]
[358491997,1745209840372,-1000.0,0.000545,2]
[358491998,1745209840381,-1000.0,0.000545,2]
[358491999,1745209840391,-1000.0,0.000545,2]
[358492000,1745209840401,-1000.0,0.000545,2]
[358492001,1745209840410,-1000.0,0.000545,2]
[358492002,1745209840421,-1000.0,0.000545,2]
[358492003,1745209840430,-1000.0,0.000545,2]
[358492004,1745209840441,-1000.0,0.000545,2]
[358492005,1745209840451,-1000.0,0.000545,2]
[358492006,1745209840461,-1000.0,0.000545,2]
[358492007,1745209840470,-1000.0,0.000545,2]
[358492008,1745209840480,-1000.0,0.000545,2]
[358492009,1745209840489,-1000.0,0.000545,2]
[358492010,1745209840498,-1000.0,0.000545,2]
[358492011,1745209840508,-1000.0,0.000545,2]
[358492012,1745209840518,-1000.0,0.000545,2]
[358492013,1745209840528,-1000.0,0.000545,2]
[358492014,1745209840538,-1000.0,0.000545,2]
[358492015,1745209840547,-1000.0,0.000545,2]
[358492016,1745209840557,-1000.0,0.000545,2]
[358492017,1745209840566,-1000.0,0.000545,2]
[358492018,1745209840576,-1000.0,0.000545,2]
[358492019,1745209840585,-1000.0,0.000545,2]
[358492020,1745209840595,-1000.0,0.000545,2]
[358492021,1745209840604,-1000.0,0.000545,2]
[358492022,1745209840613,-1000.0,0.000545,2]
[358492023,1745209840622,-1000.0,0.000545,2]
[358492024,1745209840631,-1000.0,0.000545,2]
[358492025,1745209840641,-1000.0,0.000545,2]
[358492026,1745209840650,-1000.0,0.000545,2]
[358492027,1745209840659,-1000.0,0.000545,2]
[358492028,1745209840669,-1000.0,0.000545,2]
[358492029,1745209840678,-1000.0,0.000545,2]
[358492030,1745209840688,-1000.0,0.000545,2]
[358492031,1745209840698,-1000.0,0.000545,2]
[358492032,1745209840707,-1000.0,0.000545,2]
[358492033,1745209840717,-1000.0,0.000545,2]
[358492034,1745209840726,-1000.0,0.000545,2]
[358492035,1745209840735,-1000.0,0.000545,2]
[358492036,1745209840746,-1000.0,0.000545,2]
[358492037,1745209840756,-1000.0,0.000545,2]
[358492038,1745209840765,-1000.0,0.000545,2]
[358492039,1745209840774,-1000.0,0.000545,2]
[358492040,1745209840784,-917.0,0.000545,2]
[358492041,1745209840793,-186.35,0.000545,54]
[358492042,1745209840803,-186.35,0.000545,54]
[358492043,1745209840812,-186.35,0.000545,54]
[358492044,1745209840822,-186.35,0.000545,54]
[358492045,1745209840831,-186.35,0.000545,54]
[358492046,1745209840840,-186.35,0.000545,54]
[358492047,1745209840849,-186.35,0.000545,54]
[358492048,1745209840859,-186.35,0.000545,54]
[358492049,1745209840869,-186.35,0.000545,54]
[358492050,1745209840878,-186.35,0.000545,54]
[358492051,1745209840888,-186.35,0.000545,54]
[358492052,1745209840897,-186.35,0.000545,54]
[358492053,1745209840906,-186.35,0.000545,54]
[358492054,1745209840916,-186.35,0.000545,54]
[358492055,1745209840925,-186.35,0.000545,54]
[358492056,1745209840935,-186.35,0.000545,54]
[358492057,1745209840944,-186.35,0.000545,54]
[358492058,1745209840954,-186.35,0.000545,54]
[358492059,1745209840964,-186.35,0.000545,54]
[358492060,1745209840974,-186.35,0.000545,54]
[358492061,1745209840984,-186.35,0.000545,54]
[358492062,1745209840997,-186.35,0.000545,54]
[358492063,1745209841007,-186.35,0.000545,54]
[358492064,1745209841017,-186.35,0.000545,54]
[358492066,1745209841026,-282.244742,0.00054501,60]
[358492068,1745209841035,-155.744419,0.00054501,60]
[358492070,1745209841048,-156.02,0.0005479,120]
[358492072,1745209841059,-194.11105237,0.00054797,32]
[358492074,1745209841069,-4712.33757875,0.000548,120]
[358492076,1745209841079,-49692.19663307,0.000548,120]
[358492078,1745209841088,-7648.77056577,0.000548,120]
[358492080,1745209841097,-500.0,0.00054803,60]
[358492082,1745209841107,-151.38,0.00054838,2]
[358492084,1745209841116,-155.277725,0.00054838,2]
[358492086,1745209841124,-800.0,0.00054841,60]
[358492088,1745209841133,-3126.59264757,0.000549,30]
[358492090,1745209841144,-282.244742,0.0005494,3]
[358492092,1745209841154,-620.3819362,0.0005498,60]
[358492094,1745209841163,-151.0,0.00055,120]
[358492095,1745209841173,-162.73161502,0.00055,5]
[358492096,1745209841182,-418.5111103,0.00055,2]
[358492097,1745209841191,-152.06274689,0.00055,30]
[358492098,1745209841201,-724.26,0.00055002,2]
[358492099,1745209841210,-800.0,0.00055164,120]
[358492100,1745209841219,-500.0,0.0005543,120]
[358492101,1745209841228,-155.744419,0.0005544,2]
[358492102,1745209841238,-800.0,0.0005558,120]
[358492103,1745209841248,-800.0,0.0005561,120]
[358492104,1745209841257,-2000.0,0.000559,90]
[358492105,1745209841266,-154.0,0.00056,120]
[358492106,1745209841276,-500.0,0.00056208,120]
[358492107,1745209841286,-166.66,0.0005623,2]
[358492108,1745209841295,-151.0,0.00056265,120]
[358492109,1745209841305,-500.0,0.00056279,120]
[358492110,1745209841314,-4085.28701048,0.00056567,15]
[358492111,1745209841324,-800.0,0.00056585,120]
[358492112,1745209841334,-282.244742,0.00056641,2]
[358492113,1745209841343,-1176.41122513,0.00056763,15]
[358492114,1745209841352,-800.0,0.00056827,120]
[358492115,1745209841361,-800.0,0.00056988,120]
[358492116,1745209841370,-500.0,0.00056992,120]
[358492117,1745209841380,-692.78,0.00056997,30]
[358492118,1745209841389,-797.18,0.00056997,30]
[358492119,1745209841398,-797.18,0.00056997,30]
[358492120,1745209841407,-797.18,0.00056997,30]
[358492121,1745209841416,-690.59,0.00056997,30]
[358492122,1745209841426,-166.67,0.0005701,2]
[358492123,1745209841435,-927.69,0.00057134,30]
[358492124,1745209841446,-417.31,0.00057134,30]
[358492125,1745209841455,-318.18,0.00057134,30]
[358492126,1745209841465,-168.38,0.00057134,30]
[358492127,1745209841475,-157.15,0.00057134,30]
[358492128,1745209841485,-350.68,0.00057134,30]
[358492129,1745209841494,-317.93,0.00057134,30]
[358492130,1745209841504,-350.68,0.00057134,30]
[358492131,1745209841513,-150.62,0.00057134,30]
[358492132,1745209841522,-724.26,0.00057266,2]
[358492133,1745209841532,-500.0,0.00057433,120]
[358492134,1745209841541,-151.0,0.0005753,120]
[358492135,1745209841550,-150.0,0.00057956,30]
[358492136,1745209841560,-150.0,0.00057956,30]
[358492137,1745209841569,-150.0,0.00057956,30]
[358492138,1745209841579,-150.0,0.00057956,30]
[358492139,1745209841589,-151.0,0.00058,120]
[358492140,1745209841599,-2080.11848847,0.00058,120]
[358492141,1745209841608,-800.0,0.00058078,120]
[358492142,1745209841618,-800.0,0.00058142,120]
[358492143,1745209841632,-157.26,0.00058302,120]
[358492144,1745209841643,-169.0,0.00058312,120]
[358492145,1745209841652,-800.0,0.00058563,120]
[358492146,1745209841661,-1000.0,0.00058576,120]
[358492147,1745209841670,-2000.0,0.000586,90]
[358492148,1745209841680,-4085.28701048,0.00058733,15]
[358492149,1745209841689,-151.0,0.00058795,120]
[358492150,1745209841698,-17162.03185184,0.00058889,120]
[358492151,1745209841707,-500.0,0.000589,120]
[358492152,1745209841717,-800.0,0.00058948,120]
[358492153,1745209841726,-724.26,0.0005953,2]
[358492154,1745209841735,-151.0,0.00059589,120]
[358492155,1745209841744,-7435.88654179,0.0005987,120]
[358492156,1745209841753,-498.00176652,0.00059952,14]
[358492157,1745209841762,-151.9618093,0.00059999,120]
[358492158,1745209841771,-439.65983743,0.00059999,120]
[358492159,1745209841780,-529.98686773,0.00059999,120]
[358492160,1745209841789,-500.0,0.00059999,120]
[358492161,1745209841798,-478.64561102,0.00059999,120]
[358492162,1745209841808,-500.0,0.00059999,120]
[358492163,1745209841817,-500.0,0.00059999,120]
[358492164,1745209841827,-500.0,0.00059999,120]
[358492165,1745209841836,-500.0,0.00059999,120]
[358492166,1745209841845,-1161.75542025,0.00059999,120]
[358492167,1745209841854,-1000.0,0.0006,120]
[358492168,1745209841863,-482.30327007,0.0006,120]
[358492169,1745209841873,-1000.0,0.0006,7]
[358492170,1745209841882,-1000.0,0.0006,7]
[358492171,1745209841892,-1000.0,0.0006,28]
[358492172,1745209841902,-1000.0,0.0006,28]
[358492173,1745209841911,-1000.0,0.0006,9]
[358492174,1745209841920,-1000.0,0.0006,9]
[358492175,1745209841930,-1000.0,0.0006,9]
[358492176,1745209841942,-623.0,0.0006,15]
[358492177,1745209841951,-1000.0,0.0006,12]
[358492178,1745209841961,-423.87,0.0006,63]
[358492179,1745209841970,-614.99,0.0006,120]
[358492180,1745209841980,-17920.76607023,0.0006,120]
[358492181,1745209841990,-534.89710566,0.0006,120]
[358492182,1745209842003,-150.0,0.0006,2]
[358492183,1745209842013,-154.0,0.0006,120]
[358492184,1745209842023,-241.35286649,0.0006,3]
[358492185,1745209842032,-334.86179144,0.0006,120]
[358492186,1745209842042,-787.03733661,0.0006,120]
[358492187,1745209842051,-421.05679157,0.0006,120]
[358492188,1745209842061,-1490.1983777,0.0006,120]
[358492189,1745209842071,-192.19748725,0.0006,30]
[358492190,1745209842081,-244.33491417,0.0006,120]
[358492191,1745209842091,-1765.90980311,0.0006,120]
[358492192,1745209842100,-219.41,0.0006,120]
[358492193,1745209842109,-864.80066179,0.0006,120]
[358492194,1745209842119,-176.38956735,0.0006,30]
[358492195,1745209842128,-300.0,0.0006,2]
[358492196,1745209842138,-151.0,0.00060059,120]
[358492197,1745209842147,-151.38,0.0006006,3]
[358492198,1745209842156,-155.277725,0.0006006,3]
[358492199,1745209842166,-155.744419,0.0006006,3]
[358492200,1745209842175,-166.67,0.00060147,2]
[358492201,1745209842184,-500.0,0.00060274,4]
[358492202,1745209842194,-150.0,0.00060274,120]
[358492203,1745209842205,-150.0,0.00060274,120]
[358492204,1745209842213,-150.0,0.00060274,120]
[358492205,1745209842222,-150.0,0.00060274,120]
[358492206,1745209842232,-150.0,0.00060274,120]
[358492207,1745209842241,-151.61035404,0.00060274,120]
[358492208,1745209842251,-150.0,0.00060274,120]
[358492209,1745209842356,-2272.0,0.00060274,120]
[358492210,1745209842379,-500.0,0.00060274,120]
[358492211,1745209842388,-904.0,0.00060274,120]
[358492212,1745209842397,-500.0,0.00060274,120]
[358492213,1745209842407,-150.0,0.00060274,80]
[358492214,1745209842416,-500.0,0.00060274,120]
[358492215,1745209842426,-150.0,0.00060274,120]
[358492216,1745209842435,-150.0,0.00060274,120]
[358492217,1745209842445,-150.0,0.00060274,120]
[358492218,1745209842456,-500.0,0.00060274,120]
[358492219,1745209842466,-150.0,0.00060274,120]
[358492220,1745209842475,-150.0,0.00060274,120]
[358492221,1745209842485,-150.0,0.00060274,120]
[358492222,1745209842494,-276.23870038,0.00060274,120]
[358492223,1745209842504,-150.0,0.00060274,120]
[358492224,1745209842515,-500.0,0.00060274,120]
[358492225,1745209842524,-500.0,0.00060274,120]
[358492226,1745209842533,-150.0,0.00060274,120]
[358492227,1745209842542,-150.0,0.00060274,120]
[358492228,1745209842551,-500.0,0.00060274,120]
[358492229,1745209842560,-150.0,0.00060274,2]
[358492230,1745209842569,-150.0,0.00060274,120]
[358492231,1745209842579,-282.244742,0.00060714,60]
[358492232,1745209842588,-155.277725,0.00060714,60]
[358492233,1745209842597,-155.744419,0.00060714,60]
[358492234,1745209842606,-2297.442634,0.000608,120]
[358492235,1745209842616,-88888.0,0.000608,120]
[358492236,1745209842626,-150.0,0.00060822,120]
[358492237,1745209842635,-2272.0,0.00060822,120]
[358492238,1745209842644,-500.0,0.00060822,120]
[358492239,1745209842655,-904.0,0.00060822,120]
[358492240,1745209842664,-500.0,0.00060822,120]
[358492241,1745209842673,-248.48213612,0.00060822,80]
[358492242,1745209842682,-500.0,0.00060822,120]
[358492243,1745209842691,-150.0,0.00060822,120]
[358492244,1745209842700,-500.0,0.00060822,120]
[358492245,1745209842709,-150.0,0.00060822,120]
[358492246,1745209842719,-500.0,0.00060822,120]
[358492247,1745209842728,-500.0,0.00060822,120]
[358492248,1745209842738,-150.0,0.00060822,120]
[358492249,1745209842747,-500.0,0.00060822,120]
[358492250,1745209842756,-150.0,0.00060822,120]
[358492251,1745209842765,-1049.41270238,0.0006089,5]
[358492252,1745209842775,-400.0,0.000609,120]
[358492253,1745209842785,-186.35,0.000609,63]
[358492254,1745209842795,-186.35,0.000609,63]
[358492255,1745209842805,-186.35,0.000609,63]
[358492256,1745209842814,-186.35,0.000609,63]
[358492257,1745209842824,-186.35,0.000609,63]
[358492258,1745209842833,-186.35,0.000609,63]
[358492259,1745209842843,-186.35,0.000609,63]
[358492260,1745209842852,-186.35,0.000609,63]
[358492261,1745209842861,-186.35,0.000609,63]
[358492262,1745209842870,-186.35,0.000609,63]
[358492263,1745209842879,-186.35,0.000609,63]
[358492264,1745209842888,-186.35,0.000609,63]
[358492265,1745209842897,-186.35,0.000609,63]
[358492266,1745209842907,-186.35,0.000609,63]
[358492267,1745209842916,-186.35,0.000609,63]
[358492268,1745209842925,-186.35,0.000609,63]
[358492269,1745209842934,-186.35,0.000609,63]
[358492270,1745209842943,-186.35,0.000609,63]
[358492271,1745209842952,-186.35,0.000609,63]
[358492272,1745209842961,-186.35,0.000609,63]
[358492273,1745209842971,-186.35,0.000609,63]
[358492274,1745209842980,-186.35,0.000609,63]
[358492275,1745209842990,-186.35,0.000609,63]
[358492276,1745209843002,-186.35,0.000609,63]
[358492277,1745209843011,-252.45710336,0.000609,63]
[358492278,1745209843020,-200.0,0.000609,63]
[358492279,1745209843029,-207.4,0.000609,63]
[358492280,1745209843038,-215.0738,0.000609,63]
[358492284,1745209843047,-223.0315306,0.000609,63]
[358492287,1745209843060,-231.28369723,0.000609,63]
[358492289,1745209843072,-239.84119403,0.000609,63]
[358492290,1745209843081,-248.71531821,0.000609,63]
[358492291,1745209843091,-257.91778498,0.000609,63]
[358492292,1745209843101,-267.46074303,0.000609,63]
[358492293,1745209843110,-277.35679052,0.000609,63]
[358492294,1745209843121,-287.61899177,0.000609,63]
[358492295,1745209843131,-298.26089446,0.000609,63]
[358492296,1745209843141,-309.29654756,0.000609,63]
[358492297,1745209843150,-320.74051982,0.000609,63]
[358492298,1745209843160,-332.60791905,0.000609,63]
[358492299,1745209843170,-344.91441206,0.000609,63]
[358492300,1745209843179,-357.6762453,0.000609,63]
[358492301,1745209843189,-370.91026638,0.000609,63]
[358492302,1745209843198,-384.63394623,0.000609,63]
[358492303,1745209843208,-454.33573021,0.000609,63]
[358492306,1745209843218,-4085.28701048,0.000609,15]
[358492308,1745209843228,-6100.0,0.000609,22]
[358492311,1745209843237,-396.86,0.000609,63]
[358492314,1745209843247,-282.244742,0.0006092,3]
[358492316,1745209843257,-1049.41270238,0.0006098,5]
[358492318,1745209843266,-2098.82540476,0.0006099,5]
[358492320,1745209843276,-1000.0,0.00061,20]
[358492322,1745209843286,-1000.0,0.00061,20]
[358492324,1745209843296,-496.0,0.00061,35]
[358492326,1745209843305,-1000.0,0.00061,12]
[358492328,1745209843315,-1000.0,0.00061,12]
[358492329,1745209843324,-1000.0,0.00061,9]
[358492330,1745209843333,-1000.0,0.00061,9]
[358492331,1745209843342,-1014.0,0.00061,12]
[358492332,1745209843352,-1000.0,0.00061,12]
[358492333,1745209843361,-1000.0,0.00061,3]
[358492334,1745209843371,-745.8537,0.00061,120]
[358492335,1745209843381,-53723.2899625,0.00061,120]
[358492336,1745209843391,-800.0,0.00061024,120]
[358492337,1745209843401,-800.0,0.00061065,120]
[358492338,1745209843410,-237.80487489,0.00061324,120]
[358492339,1745209843419,-200.0,0.0006137,120]
[358492340,1745209843429,-2272.0,0.0006137,120]
[358492341,1745209843439,-500.0,0.0006137,120]
[358492342,1745209843448,-904.0,0.0006137,120]
[358492343,1745209843458,-500.0,0.0006137,120]
[358492344,1745209843468,-500.0,0.0006137,120]
[358492345,1745209843477,-200.0,0.0006137,120]
[358492346,1745209843486,-500.0,0.0006137,120]
[358492347,1745209843496,-228.00086056,0.0006137,120]
[358492348,1745209843506,-500.0,0.0006137,120]
[358492349,1745209843516,-500.0,0.0006137,120]
[358492350,1745209843526,-200.0,0.0006137,120]
[358492351,1745209843535,-500.0,0.0006137,120]
[358492352,1745209843544,-200.0,0.0006137,120]
[358492353,1745209843554,-151.0,0.0006137,120]
[358492354,1745209843563,-151.0,0.0006137,120]
[358492355,1745209843573,-153.776174,0.0006137,120]
[358492356,1745209843583,-2000.0,0.000614,90]
[358492357,1745209843592,-500.0,0.000614,120]
[358492358,1745209843601,-500.0,0.0006172,120]
[358492359,1745209843610,-1049.41270238,0.00061732,5]
[358492360,1745209843619,-14552.8627622,0.00061752,120]
[358492361,1745209843629,-724.26,0.00061794,2]
[358492362,1745209843638,-2272.0,0.00061918,120]
[358492363,1745209843648,-326.87598658,0.00061918,120]
[358492364,1745209843657,-904.0,0.00061918,120]
[358492365,1745209843667,-500.0,0.00061918,120]
[358492366,1745209843676,-500.0,0.00061918,120]
[358492367,1745209843686,-500.0,0.00061918,120]
[358492368,1745209843696,-500.0,0.00061918,120]
[358492369,1745209843706,-500.0,0.00061918,120]
[358492370,1745209843715,-507.75242315,0.00061918,120]
[358492371,1745209843725,-500.0,0.00061922,120]
[358492372,1745209843735,-500.0,0.00061975,120]
[358492373,1745209843744,-1049.41270238,0.0006199,5]
[358492374,1745209843754,-258.0,0.00062,120]
[358492376,1745209843763,-1000.0,0.00062,30]
[358492378,1745209843772,-1000.0,0.00062,30]
[358492380,1745209843782,-1000.0,0.00062,25]
[358492381,1745209843791,-1000.0,0.00062,25]
[358492382,1745209843801,-150.0,0.00062,120]
[358492383,1745209843810,-682.67813508,0.00062,120]
[358492384,1745209843820,-800.0,0.00062064,120]
[358492385,1745209843829,-800.0,0.000622,120]
[358492386,1745209843839,-2272.0,0.00062466,120]
[358492387,1745209843848,-904.0,0.00062466,120]
[358492388,1745209843858,-500.0,0.00062466,120]
[358492389,1745209843867,-500.0,0.00062466,120]
[358492390,1745209843876,-500.0,0.00062466,120]
[358492391,1745209843887,-500.0,0.00062466,120]
[358492392,1745209843896,-500.0,0.00062466,120]
[358492393,1745209843905,-755.63063361,0.00062778,120]
[358492394,1745209843914,-500.0,0.00062789,120]
[358492395,1745209843924,-464.78160279,0.00062798,120]
[358492396,1745209843934,-12200.0,0.000628,22]
[358492397,1745209843943,-1049.41270238,0.0006288,5]
[358492398,1745209843953,-1049.41270238,0.0006289,5]
[358492399,1745209843963,-151.0,0.0006289,120]
[358492400,1745209843972,-151.0,0.000629,120]
[358492401,1745209843982,-151.0,0.000629,120]
[358492402,1745209843992,-18300.0,0.000629,22]
[358492403,1745209844004,-151.0,0.00062913,120]
[358492404,1745209844014,-151.0,0.00062913,120]
[358492405,1745209844024,-152.22899,0.00062913,120]
[358492406,1745209844035,-151.0,0.00062913,120]
[358492407,1745209844044,-152.800737,0.00062913,120]
[358492408,1745209844054,-151.0,0.00062913,120]
[358492409,1745209844065,-166.75293362,0.00062913,42]
[358492410,1745209844076,-164.686311,0.00062973,120]
[358492411,1745209844086,-4197.65080952,0.00062992,5]
[358492412,1745209844095,-4197.65080952,0.00062992,5]
[358492413,1745209844104,-4197.65080952,0.00062993,5]
[358492414,1745209844113,-227.1,0.00063,60]
[358492415,1745209844123,-150.0,0.00063,120]
[358492416,1745209844132,-1500.0,0.00063,120]
[358492417,1745209844141,-539.79726149,0.00063,120]
[358492418,1745209844150,-1000.0,0.00063,120]
[358492419,1745209844160,-10127.4066545,0.00063,120]
[358492420,1745209844169,-672.03124399,0.00063002,120]
[358492421,1745209844179,-1000.0,0.00063002,2]
[358492422,1745209844188,-1000.0,0.00063002,2]
[358492423,1745209844197,-1000.0,0.00063002,2]
[358492424,1745209844207,-1000.0,0.00063002,2]
[358492425,1745209844216,-1000.0,0.00063002,2]
[358492426,1745209844225,-1000.0,0.00063002,2]
[358492427,1745209844235,-1000.0,0.00063002,2]
[358492428,1745209844245,-1009.95574706,0.00063002,2]
[358492429,1745209844254,-155.061697,0.00063002,120]
[358492430,1745209844264,-1000.0,0.00063002,2]
[358492431,1745209844273,-1000.0,0.00063002,2]
[358492432,1745209844282,-1000.0,0.00063002,2]
[358492433,1745209844292,-1000.0,0.00063002,2]
[358492434,1745209844301,-1000.0,0.00063002,2]
[358492435,1745209844310,-151.0,0.00063002,120]
[358492436,1745209844320,-151.0,0.00063002,120]
[358492437,1745209844330,-151.0,0.00063002,120]
[358492438,1745209844339,-151.0,0.00063002,120]
[358492439,1745209844349,-151.0,0.00063002,120]
[358492440,1745209844358,-199.66817015,0.00063002,120]
[358492441,1745209844368,-151.0,0.00063003,120]
[358492442,1745209844378,-151.0,0.00063003,120]
[358492443,1745209844388,-151.0,0.00063003,120]
[358492444,1745209844397,-151.0,0.00063003,120]
[358492445,1745209844406,-151.0,0.00063004,120]
[358492446,1745209844416,-500.0,0.00063012,60]
[358492447,1745209844425,-676.62619716,0.00063012,120]
[358492448,1745209844435,-1000.0,0.00063012,2]
[358492449,1745209844445,-500.0,0.00063012,60]
[358492450,1745209844454,-132239.95082207,0.00063012,2]
[358492451,1745209844464,-500.0,0.00063013,60]
[358492452,1745209844473,-500.0,0.00063013,120]
[358492453,1745209844482,-500.0,0.00063013,120]
[358492454,1745209844492,-500.0,0.00063013,3]
[358492455,1745209844501,-517.81460755,0.00063013,120]
[358492456,1745209844510,-502.60956591,0.00063013,120]
[358492457,1745209844520,-500.0,0.00063013,120]
[358492458,1745209844529,-500.0,0.00063013,120]
[358492459,1745209844539,-500.0,0.00063013,120]
[358492460,1745209844548,-549.4962599,0.00063013,120]
[358492461,1745209844557,-523.30991122,0.00063013,120]
[358492462,1745209844567,-511.5699732,0.00063013,120]
[358492463,1745209844577,-642.48156271,0.00063013,120]
[358492464,1745209844586,-500.0,0.00063013,120]
[358492465,1745209844595,-582.52669267,0.00063013,120]
[358492466,1745209844605,-500.0,0.00063013,120]
[358492467,1745209844614,-500.0,0.00063013,120]
[358492468,1745209844623,-500.0,0.00063013,120]
[358492469,1745209844632,-500.0,0.00063013,120]
[358492470,1745209844642,-500.0,0.00063013,120]
[358492471,1745209844652,-543.9556144,0.00063013,120]
[358492472,1745209844662,-500.0,0.00063013,30]
[358492473,1745209844671,-500.0,0.00063013,120]
[358492474,1745209844680,-565.56746368,0.00063013,120]
[358492475,1745209844690,-555.82582885,0.00063013,120]
[358492476,1745209844699,-500.0,0.00063013,120]
[358492477,1745209844709,-500.0,0.00063013,120]
[358492478,1745209844718,-500.0,0.00063013,120]
[358492479,1745209844728,-500.0,0.00063013,120]
[358492480,1745209844738,-534.74645381,0.00063013,120]
[358492481,1745209844747,-500.0,0.00063013,120]
[358492482,1745209844756,-500.0,0.00063013,120]
[358492483,1745209844765,-500.0,0.00063013,120]
[358492484,1745209844885,-199.10089197,0.00063013,120]
[358492485,1745209844895,-500.0,0.00063013,120]
[358492486,1745209844905,-500.0,0.00063013,120]
[358492487,1745209844915,-500.0,0.00063013,120]
[358492488,1745209844924,-500.0,0.00063013,120]
[358492489,1745209844934,-500.0,0.00063013,120]
[358492490,1745209844943,-500.0,0.00063013,120]
[358492491,1745209844952,-500.0,0.00063013,120]
[358492492,1745209844962,-250.0,0.00063013,120]
[358492493,1745209844971,-500.0,0.00063013,120]
[358492494,1745209844981,-500.0,0.00063013,120]
[358492495,1745209844991,-500.0,0.00063013,120]
[358492496,1745209845004,-514.22434345,0.00063013,120]
[358492497,1745209845013,-500.0,0.00063013,120]
[358492498,1745209845022,-518.09002428,0.00063013,120]
[358492499,1745209845032,-500.0,0.00063013,120]
[358492500,1745209845042,-554.60362736,0.00063013,120]
[358492501,1745209845051,-500.0,0.00063013,120]
[358492502,1745209845061,-164.02108377,0.00063013,120]
[358492503,1745209845070,-500.0,0.00063013,120]
[358492504,1745209845081,-500.0,0.00063013,120]
[358492505,1745209845090,-500.0,0.00063013,120]
[358492506,1745209845099,-500.0,0.00063013,120]